bitfinex/quotes_SOLUSD_20220228
["timestamp","ask_amount","ask_price","bid_price","bid_amount"]
[1646067304359,1.75469038,95.301,95.191,118.39883391]
[1646067304759,4.199,95.303,95.192,2.5384331]
[1646067304961,23.4141,95.304,95.194,2.84101702]
[1646067305558,23.4141,95.304,95.198,104.5]
[1646067305759,42.25137854,95.303,95.205,62.69]
[1646067305961,42.25137854,95.303,95.212,45.37538018]
[1646067306160,42.25137854,95.303,95.213,24.0222]
[1646067307379,23.4141,95.304,95.213,24.0222]
[1646067307380,23.4141,95.304,95.214,167.19]
[1646067307580,23.71889903,95.33,95.215,2.27180975]
[1646067307781,1.63827088,95.349,95.247,62.69]
[1646067307986,15.4,95.359,95.26,15.13]
[1646067308181,1.76205212,95.358,95.261,24.1981]
[1646067308381,1.84055219,95.357,95.261,75.38057386]
[1646067309188,1.84055219,95.357,95.262,104.5]
[1646067309384,4.196,95.362,95.263,167.19]
[1646067309790,17.09818082,95.361,95.263,167.19]
[1646067309985,4.196,95.36,95.263,167.19]
[1646067310184,41.3021697,95.359,95.263,167.19]
[1646067310384,4.196,95.358,95.263,167.19]
[1646067310787,41.3021697,95.359,95.264,2.86455454]
[1646067311587,41.3021697,95.359,95.265,2.74678921]
[1646067311785,27.7839,95.383,95.265,2.74678921]
[1646067311786,4.196,95.383,95.281,167.19]
[1646067311987,4.196,95.383,95.284,2.38734106]
[1646067312185,47.4299,95.396,95.284,2.38734106]
[1646067312385,17.11252811,95.379,95.284,2.38734106]
[1646067312785,33.76096042,95.378,95.286,167.19]
[1646067312986,33.76096042,95.378,95.285,49.90174023]
[1646067312987,33.76096042,95.378,95.301,167.19]
[1646067313186,17.11252811,95.377,95.31,15.13]
[1646067313994,17.11252811,95.377,95.311,167.19]
[1646067314197,17.11252811,95.377,95.311,169.49314279]
[1646067314393,4.195,95.402,95.312,3.02678829]
[1646067314599,23.64107379,95.412,95.312,3.02678829]
[1646067314796,17.1071606,95.401,95.313,167.19]
[1646067315001,17.1071606,95.401,95.331,167.19]
[1646067315200,17.1071606,95.411,95.341,167.19]
[1646067315498,17.1071606,95.425,95.343,167.19]
[1646067315700,17.1071606,95.425,95.343,62.69]
[1646067316801,17.1071606,95.425,95.344,104.5]
[1646067317002,17.1071606,95.425,95.352,104.5]
[1646067317200,17.1071606,95.429,95.36,15.13]
[1646067317400,17.1071606,95.429,95.361,54.09086073]
[1646067317603,17.1071606,95.444,95.361,54.09086073]
[1646067318101,40.25164734,95.444,95.361,116.78086073]
[1646067318401,40.25164734,95.443,95.362,104.5]
[1646067318603,4.192,95.442,95.361,116.78086073]
[1646067318802,17.1071606,95.442,95.361,116.78086073]
[1646067319201,17.1071606,95.442,95.374,104.5]
[1646067319404,23.14448674,95.461,95.384,104.5]
[1646067319603,4.192,95.468,95.385,2.33898072]
[1646067319801,15.3362,95.481,95.401,104.5]
[1646067320001,1.77776946,95.495,95.4,15.13]
[1646067320202,4.19,95.494,95.4,15.13]
[1646067320402,45.56460022,95.493,95.401,29.88619276]
[1646067320603,4.19,95.492,95.401,29.88619276]
[1646067320805,5.67988144,95.492,95.401,29.88619276]
[1646067321419,27.32466183,95.492,95.401,29.88619276]
[1646067321606,1.44161611,95.491,95.401,29.88619276]
[1646067321808,4.19,95.49,95.401,29.88619276]
[1646067322009,25.33478039,95.49,95.401,29.88619276]
[1646067322205,1.36447043,95.489,95.401,29.88619276]
[1646067322406,4.19,95.488,95.401,29.88619276]
[1646067322607,35.66866131,95.488,95.4,15.13]
[1646067322807,14.265909,95.487,95.38,15.13]
[1646067323108,16.81923699,95.486,95.38,15.13]
[1646067323307,36.77037581,95.486,95.38,15.13]
[1646067323606,1.5331961,95.484,95.381,54.0262432]
[1646067324005,32.57937581,95.483,95.381,54.0262432]
[1646067324207,5.57176017,95.482,95.381,54.0262432]
[1646067324406,27.21654056,95.482,95.381,54.0262432]
[1646067324608,1.7911241,95.481,95.381,54.0262432]
[1646067324806,1.6990178,95.48,95.381,54.0262432]
[1646067325006,23.34379819,95.48,95.381,54.0262432]
[1646067325207,23.42706864,95.479,95.381,54.0262432]
[1646067325408,18.58434421,95.478,95.381,54.0262432]
[1646067325609,18.58434421,95.478,95.38,15.13]
[1646067325610,5.55352718,95.477,95.38,15.13]
[1646067325810,18.38106372,95.477,95.351,24.9789]
[1646067326007,1.38875611,95.476,95.36,15.13]
[1646067326209,5.90553942,95.475,95.36,15.13]
[1646067326607,1.54449327,95.474,95.361,53.61119926]
[1646067326810,4.192,95.473,95.361,53.61119926]
[1646067327008,27.51237979,95.473,95.361,53.61119926]
[1646067327211,1.85350499,95.471,95.361,53.61119926]
[1646067327408,4.192,95.47,95.361,53.61119926]
[1646067327610,25.83678039,95.47,95.361,53.61119926]
[1646067327809,1.85544326,95.469,95.361,53.61119926]
[1646067328008,5.65672656,95.468,95.361,53.61119926]
[1646067328208,27.30150695,95.468,95.361,53.61119926]
[1646067328409,25.83678039,95.468,95.361,53.61119926]
[1646067328609,21.64478039,95.467,95.361,53.61119926]
[1646067328811,5.8849001,95.466,95.361,53.61119926]
[1646067329211,1.66673796,95.464,95.361,53.61119926]
[1646067329409,43.28669887,95.462,95.361,53.61119926]
[1646067329609,4.192,95.461,95.361,53.61119926]
[1646067329812,5.8551545,95.461,95.361,53.61119926]
[1646067330016,1.6631545,95.461,95.362,104.5]
[1646067330213,24.9979545,95.461,95.362,104.5]
[1646067330414,1.5337362,95.478,95.365,62.69]
[1646067330615,4.191,95.477,95.372,104.5]
[1646067330913,4.191,95.477,95.38,15.13]
[1646067331118,4.191,95.477,95.381,167.19]
[1646067331314,46.13605982,95.477,95.383,104.5]
[1646067331516,1.58096536,95.476,95.383,104.5]
[1646067331815,46.13605982,95.477,95.384,167.19]
[1646067332018,4.191,95.492,95.385,2.6432667]
[1646067332215,5.97950895,95.511,95.401,167.19]
[1646067332417,4.19,95.51,95.404,104.5]
[1646067332644,4.19,95.51,95.4,15.13]
[1646067332843,1.7024372,95.509,95.4,15.13]
[1646067333044,1.5504168,95.507,95.401,53.61119926]
[1646067333439,4.19,95.506,95.401,53.61119926]
[1646067333644,1.80255808,95.505,95.385,22.5811]
[1646067333846,15.13,95.49,95.385,22.5811]
[1646067334039,1.48533471,95.488,95.385,22.5811]
[1646067334241,4.191,95.487,95.36,15.13]
[1646067334440,1.71960518,95.486,95.36,15.13]
[1646067334641,4.530386,95.484,95.368,56.91911686]
[1646067334840,15.13,95.48,95.37,15.13]
[1646067335042,5.91436478,95.479,95.37,15.13]
[1646067335240,4.47015399,95.479,95.37,15.13]
[1646067335441,1.79934055,95.478,95.37,15.13]
[1646067335640,28.23645768,95.478,95.37,15.13]
[1646067335841,5.71017914,95.477,95.37,15.13]
[1646067336041,1.8396279,95.476,95.372,104.5]
[1646067336241,4.530386,95.484,95.372,104.5]
[1646067336440,4.530386,95.484,95.37,15.13]
[1646067336645,2.66604321,95.483,95.37,15.13]
[1646067336845,4.191,95.482,95.37,15.13]
[1646067337043,5.90598527,95.482,95.37,15.13]
[1646067337243,4.13402331,95.481,95.37,15.13]
[1646067337444,4.191,95.48,95.37,15.13]
[1646067337649,22.06778921,95.48,95.37,15.13]
[1646067337845,1.41358713,95.479,95.37,15.13]
[1646067338042,4.191,95.478,95.37,15.13]
[1646067338242,6.93778921,95.478,95.37,15.13]
[1646067338843,2.74678921,95.477,95.37,15.13]
[1646067339045,4.191,95.476,95.37,15.13]
[1646067339246,4.191,95.476,95.368,56.91911686]
[1646067339247,1.69107606,95.475,95.368,56.91911686]
[1646067339446,59.20056596,95.459,95.368,56.91911686]
[1646067339647,1.35763234,95.457,95.368,56.91911686]
[1646067339847,4.192,95.456,95.368,56.91911686]
[1646067340048,1.35763234,95.457,95.368,56.91911686]
[1646067340351,2.74678921,95.455,95.368,56.91911686]
[1646067340548,1.35763234,95.457,95.368,56.91911686]
[1646067340748,4.192,95.456,95.368,56.91911686]
[1646067341348,5.85823186,95.456,95.368,56.91911686]
[1646067342669,1.66623186,95.456,95.368,56.91911686]
[1646067342954,5.98260246,95.471,95.372,104.5]
[1646067343153,4.192,95.471,95.374,104.5]
[1646067343452,4.191,95.483,95.374,104.5]
[1646067343653,1.38706316,95.484,95.387,62.69]
[1646067343852,60.45815726,95.483,95.4,15.13]
[1646067344453,4.191,95.482,95.4,15.13]
[1646067344652,5.90354629,95.482,95.4,15.13]
[1646067346753,1.4005351,95.48,95.4,15.13]
[1646067346953,4.191,95.479,95.4,15.13]
[1646067347355,5.71622912,95.479,95.4,15.13]
[1646067347753,1.52522912,95.479,95.4,15.13]
[1646067347956,1.52522912,95.479,95.389,27.05793663]
[1646067348157,1.84889823,95.477,95.389,27.05793663]
[1646067348556,25.67204389,95.476,95.389,27.05793663]
[1646067348855,25.67204389,95.476,95.36,15.13]
[1646067348856,1.56319631,95.475,95.36,15.13]
[1646067349156,15.13,95.46,95.351,22.892]
[1646067349454,25.01933373,95.459,95.351,22.892]
[1646067349655,5.96739379,95.458,95.351,22.892]
[1646067349856,1.91478925,95.457,95.352,51.99031361]
[1646067350061,4.192,95.456,95.352,51.99031361]
[1646067350356,8.50364522,95.456,95.352,51.99031361]
[1646067350556,1.86937257,95.454,95.352,51.99031361]
[1646067350758,57.77252219,95.439,95.352,51.99031361]
[1646067350957,4.192,95.438,95.352,51.99031361]
[1646067351156,5.5838484,95.438,95.352,51.99031361]
[1646067351456,21.48104389,95.437,95.352,51.99031361]
[1646067351656,5.54967254,95.436,95.352,51.99031361]
[1646067352056,21.48104389,95.435,95.352,51.99031361]
[1646067352258,5.77206228,95.434,95.352,51.99031361]
[1646067353960,27.25310617,95.434,95.352,51.99031361]
[1646067354160,1.829135,95.433,95.352,51.99031361]
[1646067354361,4.192,95.432,95.352,51.99031361]
[1646067357061,6.021135,95.433,95.352,51.99031361]
[1646067358665,1.829135,95.433,95.352,51.99031361]
[1646067358882,1.829135,95.433,95.353,104.5]
[1646067359063,21.48104389,95.449,95.352,51.99031361]
[1646067359264,25.35835433,95.456,95.353,24.7773]
[1646067359464,4.192,95.455,95.353,24.7773]
[1646067359864,59.64727862,95.454,95.353,24.7773]
[1646067360065,1.4168606,95.453,95.353,24.7773]
[1646067360264,24.95368629,95.453,95.353,24.7773]
[1646067360464,25.10617456,95.452,95.353,24.7773]
[1646067360663,1.553761,95.451,95.353,24.7773]
[1646067360863,25.09058669,95.451,95.353,24.7773]
[1646067361067,5.54257912,95.45,95.353,24.7773]
[1646067361266,29.07940481,95.45,95.353,24.7773]
[1646067361467,23.53682569,95.449,95.353,24.7773]
[1646067361667,5.92907256,95.448,95.353,24.7773]
[1646067362068,1.7196846,95.446,95.353,24.7773]
[1646067362368,4.192,95.445,95.353,24.7773]
[1646067362771,26.2836149,95.444,95.302,25.3953965]
[1646067362969,15.13,95.44,95.303,23.667]
[1646067363168,1.84327602,95.439,95.304,23.9659]
[1646067363370,4.194,95.438,95.304,23.9659]
[1646067363572,30.47878302,95.438,95.304,23.9659]
[1646067363769,30.79325767,95.437,95.305,45.76541509]
[1646067363969,189.18,95.43,95.305,45.76541509]
[1646067364170,15.13,95.42,95.305,45.76541509]
[1646067364369,110.78205194,95.419,95.305,45.76541509]
[1646067364570,1.58760207,95.418,95.305,45.76541509]
[1646067364769,4.194,95.417,95.311,62.69]
[1646067364970,6.94078921,95.417,95.312,3.1181374]
[1646067365469,6.94078921,95.417,95.31,15.13]
[1646067365470,2.74678921,95.416,95.315,62.69]
[1646067365670,2.74678921,95.416,95.316,2.39875318]
[1646067366269,2.74678921,95.416,95.319,2.79161864]
[1646067366491,2.74678921,95.416,95.32,38.2116384]
[1646067366695,23.53682569,95.415,95.32,38.2116384]
[1646067366890,1.83150598,95.414,95.32,38.2116384]
[1646067367091,4.194,95.413,95.32,38.2116384]
[1646067367291,15.13,95.41,95.32,38.2116384]
[1646067367491,5.7023648,95.409,95.32,38.2116384]
[1646067367791,23.53682569,95.408,95.32,38.2116384]
[1646067367990,1.41232964,95.407,95.32,38.2116384]
[1646067368190,23.0207,95.406,95.32,38.2116384]
[1646067368793,25.76748921,95.406,95.32,38.2116384]
[1646067369192,25.76748921,95.406,95.32,53.3416384]
[1646067371096,1.60829974,95.405,95.32,38.2116384]
[1646067371293,4.1261232,95.404,95.32,38.2116384]
[1646067371493,29.46739356,95.404,95.32,38.2116384]
[1646067371694,1.81360689,95.403,95.32,38.2116384]
[1646067371895,1.5127693,95.402,95.32,38.2116384]
[1646067372095,4.25955851,95.402,95.32,38.2116384]
[1646067372293,2.74678921,95.402,95.32,38.2116384]
[1646067372693,2.74678921,95.401,95.32,38.2116384]
[1646067374294,2.74678921,95.401,95.325,167.19]
[1646067374494,2.66604321,95.415,95.34,15.13]
[1646067374694,15.9266,95.422,95.34,15.13]
[1646067374898,5.0,95.424,95.34,15.13]
[1646067375296,50.26970366,95.423,95.341,43.06738415]
[1646067377399,2.74678921,95.422,95.341,43.06738415]
[1646067377599,4.192,95.421,95.341,43.06738415]
[1646067377999,2.74678921,95.42,95.341,43.06738415]
[1646067378299,4.192,95.419,95.341,43.06738415]
[1646067378701,2.74678921,95.418,95.341,43.06738415]
[1646067378903,4.192,95.417,95.341,43.06738415]
[1646067379300,2.74678921,95.416,95.341,43.06738415]
[1646067379500,4.192,95.415,95.341,43.06738415]
[1646067379901,2.74678921,95.414,95.341,43.06738415]
[1646067380101,4.192,95.413,95.341,43.06738415]
[1646067380600,1.65838178,95.422,95.341,43.06738415]
[1646067380601,2.74678921,95.412,95.341,43.06738415]
[1646067383208,50.26970366,95.423,95.341,43.06738415]
[1646067383604,2.74678921,95.429,95.341,43.06738415]
[1646067384605,2.74678921,95.429,95.346,2.48058862]
[1646067384805,2.74678921,95.429,95.36,15.13]
[1646067385705,2.74678921,95.429,95.361,40.90966934]
[1646067389409,53.93667348,95.429,95.361,40.90966934]
[1646067389809,2.74678921,95.429,95.361,103.59966934]
[1646067390019,2.74678921,95.444,95.365,167.19]
[1646067390209,2.74678921,95.444,95.366,2.53733232]
[1646067390408,2.74678921,95.444,95.38,15.13]
[1646067390910,2.74678921,95.444,95.381,43.06738415]
[1646067391513,4.192,95.469,95.387,104.5]
[1646067391716,4.192,95.469,95.381,51.72738415]
[1646067391717,4.192,95.469,95.394,62.69]
[1646067391910,4.191,95.503,95.401,104.5]
[1646067392110,5.81573007,95.503,95.403,104.5]
[1646067392310,5.81573007,95.503,95.402,87.0254]
[1646067392511,87.52530558,95.502,95.404,40.90966934]
[1646067392713,4.19,95.501,95.404,40.90966934]
[1646067392913,36.43588826,95.501,95.404,40.90966934]
[1646067393112,4.15944615,95.5,95.404,40.90966934]
[1646067393312,4.19,95.499,95.404,40.90966934]
[1646067393612,28.28150245,95.499,95.404,40.90966934]
[1646067393812,36.69625161,95.498,95.404,40.90966934]
[1646067394012,5.99320846,95.497,95.404,40.90966934]
[1646067394214,39.18267747,95.497,95.404,40.90966934]
[1646067394412,23.17199976,95.496,95.404,40.90966934]
[1646067394613,4.19,95.495,95.404,40.90966934]
[1646067394811,1.83342614,95.494,95.404,40.90966934]
[1646067395011,4.19,95.493,95.404,40.90966934]
[1646067395212,1.70647893,95.491,95.404,40.90966934]
[1646067395413,15.09117502,95.49,95.404,40.90966934]
[1646067395713,1.79332689,95.489,95.404,40.90966934]
[1646067395922,4.19,95.488,95.404,40.90966934]
[1646067396114,7.09352919,95.487,95.404,40.90966934]
[1646067396315,4.19,95.486,95.404,40.90966934]
[1646067396514,29.78054913,95.486,95.404,40.90966934]
[1646067396717,33.68654438,95.485,95.404,40.90966934]
[1646067396915,1.80850627,95.484,95.404,40.90966934]
[1646067397117,1.53486489,95.483,95.404,40.90966934]
[1646067397316,22.87957813,95.483,95.404,40.90966934]
[1646067397516,1.70874826,95.481,95.404,40.90966934]
[1646067398019,1.52061346,95.479,95.404,40.90966934]
[1646067398418,34.99267747,95.478,95.404,40.90966934]
[1646067398716,36.74345532,95.477,95.404,40.90966934]
[1646067398917,34.99267747,95.477,95.404,40.90966934]
[1646067399120,15.11172205,95.476,95.404,40.90966934]
[1646067399518,2.74678921,95.476,95.404,40.90966934]
[1646067402120,2.74678921,95.476,95.405,62.69]
[1646067402321,2.74678921,95.476,95.405,167.19]
[1646067402521,2.74678921,95.476,95.405,62.69]
[1646067403127,2.74678921,95.476,95.404,40.90966934]
[1646067404220,23.2037,95.486,95.404,40.90966934]
[1646067404423,2.66604321,95.485,95.404,40.90966934]
[1646067404820,57.25877766,95.484,95.404,40.90966934]
[1646067405221,2.74678921,95.483,95.404,40.90966934]
[1646067405923,4.41102485,95.483,95.404,40.90966934]
[1646067406322,57.25877766,95.484,95.404,40.90966934]
[1646067406323,2.74678921,95.482,95.404,40.90966934]
[1646067406722,2.74678921,95.482,95.405,62.69]
[1646067406924,2.74678921,95.482,95.408,104.5]
[1646067407123,2.74678921,95.482,95.415,167.19]
[1646067407322,59.15903958,95.497,95.415,167.19]
[1646067407524,59.15903958,95.497,95.417,62.69]
[1646067408427,4.19,95.505,95.417,62.69]
[1646067408826,2.74678921,95.504,95.417,62.69]
[1646067409025,4.19,95.503,95.417,62.69]
[1646067409428,59.98518116,95.502,95.417,62.69]
[1646067409827,2.74678921,95.501,95.417,62.69]
[1646067411233,2.74678921,95.501,95.416,23.6589]
[1646067412632,42.89901544,95.5,95.416,23.6589]
[1646067413036,45.64580465,95.5,95.416,23.6589]
[1646067414339,1.5680531,95.507,95.421,62.69]
[1646067414542,2.66604321,95.511,95.422,2.89790469]
[1646067414740,2.74678921,95.523,95.431,62.69]
[1646067414941,4.189,95.543,95.433,62.69]
[1646067415153,4.189,95.547,95.444,104.5]
[1646067415354,52.01709402,95.546,95.451,62.69]
[1646067415555,1.5942738,95.545,95.451,62.69]
[1646067415954,1.5942738,95.545,95.45,15.13]
[1646067416154,4.188,95.544,95.45,15.13]
[1646067416556,6.93478921,95.544,95.45,15.13]
[1646067416755,2.74678921,95.543,95.45,15.13]
[1646067416959,4.188,95.542,95.45,15.13]
[1646067417359,2.74678921,95.541,95.45,15.13]
[1646067417557,4.188,95.54,95.45,15.13]
[1646067417957,2.74678921,95.539,95.45,15.13]
[1646067418156,4.188,95.538,95.45,15.13]
[1646067418657,2.74678921,95.539,95.45,15.13]
[1646067418859,2.74678921,95.537,95.45,15.13]
[1646067419157,2.74678921,95.537,95.445,23.1495]
[1646067419158,4.188,95.536,95.445,23.1495]
[1646067419557,26.70898921,95.535,95.445,23.1495]
[1646067419760,5.61982744,95.534,95.445,23.1495]
[1646067419958,8.36661665,95.534,95.445,23.1495]
[1646067420160,1.55053856,95.533,95.439,43.06738415]
[1646067420361,12.14214209,95.529,95.439,43.06738415]
[1646067420560,1.84204985,95.528,95.439,43.06738415]
[1646067420862,4.58883906,95.528,95.439,43.06738415]
[1646067421261,2.74678921,95.527,95.44,23.8138]
[1646067422563,1.84204985,95.528,95.441,167.19]
[1646067423162,4.50809306,95.528,95.441,62.69]
[1646067424364,4.50809306,95.528,95.44,38.9438]
[1646067425164,9.94052,95.527,95.439,43.06738415]
[1646067425365,15.13,95.52,95.439,43.06738415]
[1646067425664,5.91460344,95.519,95.439,43.06738415]
[1646067425871,1.35794314,95.518,95.439,43.06738415]
[1646067426064,4.189,95.517,95.439,43.06738415]
[1646067426266,25.12632036,95.517,95.439,43.06738415]
[1646067426464,27.79236357,95.517,95.42,24.222]
[1646067426664,27.79236357,95.517,95.416,4.189]
[1646067426665,53.68414714,95.516,95.416,4.189]
[1646067426865,5.87073325,95.515,95.416,4.189]
[1646067427065,41.55464474,95.515,95.416,4.189]
[1646067427264,35.2255222,95.514,95.416,4.189]
[1646067427471,15.13,95.5,95.417,44.35460133]
[1646067427666,10.35585249,95.498,95.417,44.35460133]
[1646067427867,5.90772489,95.497,95.417,44.35460133]
[1646067428365,15.44544605,95.496,95.417,44.35460133]
[1646067428566,6.03105671,95.495,95.416,4.189]
[1646067428765,44.00336812,95.495,95.416,4.189]
[1646067428965,15.12742583,95.494,95.416,4.189]
[1646067429170,15.13,95.48,95.385,47.4369]
[1646067429371,48.80947742,95.479,95.385,47.4369]
[1646067429567,1.58452482,95.478,95.386,56.96518848]
[1646067430074,5.6640963,95.477,95.361,23.6549]
[1646067430268,1.36179228,95.476,95.361,23.6549]
[1646067430467,5.97535884,95.475,95.361,23.6549]
[1646067430667,15.13,95.46,95.361,23.6549]
[1646067430869,27.326,95.459,95.361,23.6549]
[1646067431068,1.38475118,95.457,95.362,45.05493073]
[1646067431274,4.192,95.456,95.362,45.05493073]
[1646067431668,31.3445904,95.455,95.362,45.05493073]
[1646067431867,15.13,95.44,95.362,45.05493073]
[1646067432068,53.44065077,95.438,95.362,45.05493073]
[1646067432268,5.77708946,95.437,95.362,45.05493073]
[1646067432575,4.25113267,95.437,95.362,45.05493073]
[1646067432868,1.58508946,95.437,95.362,45.05493073]
[1646067433067,2.74678921,95.436,95.362,45.05493073]
[1646067434069,4.192,95.435,95.362,45.05493073]
[1646067434468,2.66604321,95.434,95.362,45.05493073]
[1646067434769,4.192,95.433,95.362,45.05493073]
[1646067435171,2.74678921,95.432,95.362,45.05493073]
[1646067435368,4.192,95.431,95.362,45.05493073]
[1646067435768,2.66604321,95.43,95.362,45.05493073]
[1646067437172,2.66604321,95.43,95.356,23.706]
[1646067437571,17.79604321,95.43,95.356,23.706]
[1646067437773,1.77554219,95.429,95.356,23.706]
[1646067437972,24.29077624,95.429,95.356,23.706]
[1646067438274,4.12661117,95.428,95.356,23.706]
[1646067438672,2.74678921,95.427,95.356,23.706]
[1646067439074,15.13,95.43,95.356,23.706]
[1646067439075,15.7883,95.433,95.356,23.706]
[1646067439575,2.74678921,95.432,95.356,23.706]
[1646067439975,4.192,95.431,95.356,23.706]
[1646067440176,5.80206178,95.431,95.356,23.706]
[1646067440377,1.58086592,95.429,95.356,23.706]
[1646067440576,4.192,95.428,95.356,23.706]
[1646067440775,6.85804321,95.428,95.356,23.706]
[1646067440979,1.5878966,95.426,95.356,23.706]
[1646067441176,4.192,95.425,95.356,23.706]
[1646067441377,6.93878921,95.425,95.356,23.706]
[1646067441575,4.192,95.425,95.356,23.706]
[1646067441776,10.35585249,95.423,95.356,23.706]
[1646067442177,4.56165103,95.422,95.356,23.706]
[1646067442476,2.74678921,95.421,95.356,23.706]
[1646067442879,2.74678921,95.421,95.277,26.35333823]
[1646067443076,15.13,95.41,95.294,23.7463]
[1646067443277,1.36355051,95.408,95.294,23.7463]
[1646067443477,4.194,95.407,95.294,23.7463]
[1646067443677,5.65468616,95.407,95.294,23.7463]
[1646067443877,1.65989097,95.405,95.323,54.90018617]
[1646067444078,4.194,95.404,95.323,54.90018617]
[1646067444280,15.13,95.39,95.323,54.90018617]
[1646067444480,1.86597722,95.389,95.294,23.7463]
[1646067444680,51.14607722,95.389,95.295,24.6293]
[1646067444885,1.73410218,95.388,95.295,24.6293]
[1646067445079,31.34660507,95.388,95.295,24.6293]
[1646067445281,6.7853423,95.387,95.295,24.6293]
[1646067445482,5.86986671,95.386,95.296,55.42491964]
[1646067445680,43.79624479,95.386,95.296,55.42491964]
[1646067445886,28.87420365,95.385,95.296,55.42491964]
[1646067446080,5.95507424,95.384,95.296,55.42491964]
[1646067446281,15.13,95.38,95.296,55.42491964]
[1646067446481,5.83413443,95.379,95.296,55.42491964]
[1646067446790,1.63913443,95.379,95.296,55.42491964]
[1646067446982,17.87678921,95.38,95.296,55.42491964]
[1646067447182,15.13,95.38,95.296,55.42491964]
[1646067447382,4.37167504,95.379,95.296,55.42491964]
[1646067447882,30.9736,95.38,95.296,55.42491964]
[1646067449182,4.18310931,95.379,95.296,55.42491964]
[1646067449383,4.195,95.378,95.296,55.42491964]
[1646067449587,1.4649904,95.376,95.296,55.42491964]
[1646067449985,25.99668921,95.377,95.296,55.42491964]
[1646067450183,23.2499,95.377,95.296,55.42491964]
[1646067450584,4.59510745,95.376,95.296,55.42491964]
[1646067450783,1.8241888,95.375,95.296,55.42491964]
[1646067450984,24.24484291,95.376,95.296,55.42491964]
[1646067450985,2.74678921,95.376,95.296,55.42491964]
[1646067451384,2.74678921,95.376,95.297,167.19]
[1646067451583,1.71109592,95.404,95.297,167.19]
[1646067451786,2.66604321,95.401,95.301,167.19]
[1646067451983,27.5814,95.419,95.302,2.57760565]
[1646067452183,43.4322,95.419,95.302,2.57760565]
[1646067452385,60.90150857,95.418,95.302,2.57760565]
[1646067452787,2.74678921,95.417,95.302,2.57760565]
[1646067454085,5.0,95.416,95.302,2.57760565]
[1646067454285,58.23546536,95.418,95.304,167.19]
[1646067454485,58.23546536,95.418,95.305,2.71346486]
[1646067454686,58.23546536,95.418,95.323,62.69]
[1646067454886,58.23546536,95.418,95.325,167.19]
[1646067455088,58.23546536,95.418,95.326,3.10608852]
[1646067455890,21.4980537,95.417,95.326,3.10608852]
[1646067456088,5.95477524,95.416,95.324,23.5904]
[1646067456288,8.70156445,95.416,95.324,23.5904]
[1646067456493,21.4980537,95.415,95.324,23.5904]
[1646067456691,5.62674295,95.414,95.324,23.5904]
[1646067456891,8.37353216,95.414,95.324,23.5904]
[1646067457088,21.4980537,95.413,95.324,23.5904]
[1646067457288,1.39283218,95.412,95.324,23.5904]
[1646067457489,4.13962139,95.412,95.324,23.5904]
[1646067457890,2.74678921,95.411,95.324,23.5904]
[1646067458092,58.23546536,95.418,95.331,167.19]
[1646067458394,62.42746536,95.418,95.331,62.69]
[1646067459391,58.23546536,95.418,95.33,15.13]
[1646067461294,24.24484291,95.417,95.33,15.13]
[1646067461495,1.71483854,95.416,95.33,15.13]
[1646067462102,2.74678921,95.415,95.335,167.19]
[1646067462396,4.194,95.423,95.336,2.83783761]
[1646067462597,4.194,95.423,95.337,62.69]
[1646067462796,22.6665,95.424,95.337,62.69]
[1646067463297,22.6665,95.424,95.341,62.69]
[1646067463497,53.00139821,95.441,95.351,62.69]
[1646067463698,53.00139821,95.441,95.354,104.5]
[1646067464121,53.00139821,95.441,95.353,28.55213385]
[1646067464521,53.00139821,95.441,95.355,2.28751295]
[1646067464720,53.00139821,95.441,95.353,28.55213385]
[1646067465724,2.74678921,95.44,95.353,28.55213385]
[1646067466226,22.664,95.439,95.353,28.55213385]
[1646067467026,22.664,95.439,95.354,167.19]
[1646067467226,22.664,95.439,95.355,2.6333758]
[1646067468428,21.4980537,95.446,95.355,2.6333758]
[1646067468630,21.4980537,95.46,95.371,167.19]
[1646067468836,21.4980537,95.46,95.37,15.13]
[1646067468837,4.192,95.465,95.373,167.19]
[1646067469029,24.649,95.467,95.374,2.57258611]